[Event "44th Chess Olympiad Women 2022"]
[Site "Chennai"]
[Date "2022.08.07"]
[Round "9.69"]
[White "Estur, Grace Co"]
[Black "Callender, Jessica"]
[Result "1-0"]
[WhiteElo "1472"]
[BlackElo "1295"]
[Annotator "NA"]
[PlyCount "105"]
[EventDate "2022.??.??"]
[TimeControl "60"]

1. d4 {[%emt 0:00:05]} Nf6 {[%emt 0:00:03]} 2. b3 {[%emt 0:00:11]} g6 {[%emt 0:
00:00]} 3. Bb2 {[%emt 0:00:10]} Bg7 {[%emt 0:00:04]} 4. Nd2 {[%emt 0:00:14]} d6
{[%emt 0:00:09]} 5. e3 {[%emt 0:00:42]} O-O {[%emt 0:00:13]} 6. Bd3 {[%emt 0:
00:00]} Nc6 {[%emt 0:03:08]} 7. Ngf3 {[%emt 0:05:05]} Nd7 {[%emt 0:00:14]} 8.
O-O {[%emt 0:00:32]} e5 {[%emt 0:00:38]} 9. dxe5 {[%emt 0:04:26]} dxe5 {
[%emt 0:00:48]} 10. Bb5 {[%emt 0:03:25]} f5 {[%emt 0:07:54]} 11. Bxc6 {[%emt 0:
00:00]} bxc6 {[%emt 0:00:08]} 12. Qe2 {[%emt 0:03:40]} e4 {[%emt 0:05:07]} 13.
Qc4+ {[%emt 0:01:25]} Kh8 {[%emt 0:02:14]} 14. Bxg7+ {[%emt 0:00:41]} Kxg7 {
[%emt 0:00:34]} 15. Nd4 {[%emt 0:00:54]} Ne5 {[%emt 0:04:44]} 16. Qc3 {[%emt 0:
00:00]} Kg8 {[%emt 0:02:32]} 17. Rad1 {[%emt 0:01:12]} Qf6 {[%emt 0:06:09]} 18.
f3 {[%emt 0:05:31]} Ba6 {[%emt 0:08:49]} 19. Rf2 {[%emt 0:00:38]} exf3 {
[%emt 0:01:31]} 20. N2xf3 {[%emt 0:05:07]} Nd7 {[%emt 0:02:57]} 21. Qa5 {
[%emt 0:08:17]} c5 {[%emt 0:05:29]} 22. Nb5 {[%emt 0:01:09]} Bxb5 {[%emt 0:00:
00]} 23. Qxb5 {[%emt 0:01:32]} c6 {[%emt 0:06:32]} 24. Qc4+ {[%emt 0:01:17]}
Qf7 {[%emt 0:03:43]} 25. Rxd7 {[%emt 0:00:26]} Qxc4 {[%emt 0:00:17]} 26. bxc4 {
[%emt 0:00:25]} Rf7 {[%emt 0:04:51]} 27. Rxf7 {[%emt 0:02:03]} Kxf7 {[%emt 0:
00:00]} 28. Ne5+ {[%emt 0:00:13]} Kg7 {[%emt 0:01:34]} 29. Nxc6 {[%emt 0:00:22]
} a5 {[%emt 0:00:42]} 30. a4 {[%emt 0:01:53]} Ra6 {[%emt 0:01:09]} 31. Ne5 {
[%emt 0:00:40]} Re6 {[%emt 0:00:11]} 32. Nd3 {[%emt 0:00:55]} Rxe3 {[%emt 0:00:
00]} 33. Rf3 {[%emt 0:00:58]} Re4 {[%emt 0:01:22]} 34. Rf4 {[%emt 0:02:57]} Re2
{[%emt 0:02:21]} 35. Nxc5 {[%emt 0:01:01]} Rxc2 {[%emt 0:00:33]} 36. Nb7 {
[%emt 0:00:35]} Ra2 {[%emt 0:01:37]} 37. c5 {[%emt 0:01:11]} Rc2 {[%emt 0:00:
00]} 38. Rd4 {[%emt 0:01:32]} Kf6 {[%emt 0:00:15]} 39. Rd7 {[%emt 0:03:16]} h5
{[%emt 0:02:32]} 40. Rc7 {[%emt 0:01:15]} f4 {[%emt 0:06:10]} 41. c6 {[%emt 0:
00:00]} g5 {[%emt 0:35:25]} 42. Rc8 {[%emt 0:01:40]} g4 {[%emt 0:02:22]} 43.
Nxa5 {[%emt 0:02:20]} Rc1+ {[%emt 0:00:18]} 44. Kf2 {[%emt 0:00:14]} Rc2+ {
[%emt 0:00:30]} 45. Ke1 {[%emt 0:01:27]} Rxg2 {[%emt 0:00:59]} 46. c7 {[%emt 0:
00:00]} Rc2 {[%emt 0:03:19]} 47. Rf8+ {[%emt 0:00:57]} Kg7 {[%emt 0:00:00]} 48.
c8=Q {[%emt 0:01:09]} Rxc8 {[%emt 0:00:10]} 49. Rxc8 {[%emt 0:00:14]} g3 {
[%emt 0:00:13]} 50. hxg3 {[%emt 0:00:23]} fxg3 {[%emt 0:00:07]} 51. Kf1 {
[%emt 0:00:12]} h4 {[%emt 0:00:34]} 52. Kg2 {[%emt 0:00:15]} Kg6 {[%emt 0:00:
00]} 53. Rc5 {[%emt 0:00:20]} 1-0

[Event "44th Chess Olympiad Women 2022"]
[Site "Chennai"]
[Date "2022.08.07"]
[Round "9.69"]
[White "Ollet, Myra"]
[Black "Lam, Pooja"]
[Result "1-0"]
[WhiteElo "1480"]
[BlackElo "1163"]
[Annotator "NA RC"]
[PlyCount "89"]
[EventDate "2022.??.??"]
[TimeControl "60"]

1. d4 {[%emt 0:00:05]} d5 {[%emt 0:00:06]} 2. Bf4 {[%emt 0:00:09]} Nf6 {
[%emt 0:00:07]} 3. Nc3 {[%emt 0:00:07]} c5 {[%emt 0:01:02]} 4. e3 {[%emt 0:00:
00]} cxd4 {[%emt 0:00:15]} 5. exd4 {[%emt 0:00:27]} Nc6 {[%emt 0:00:22]} 6. Nb5
{[%emt 0:00:27]} Qa5+ {[%emt 0:00:38]} 7. c3 {[%emt 0:00:19]} e5 {[%emt 0:00:
00]} 8. dxe5 {[%emt 0:00:21]} Ne4 {[%emt 0:05:32]} 9. Qxd5 {[%emt 0:00:39]} Bf5
{[%emt 0:00:39]} 10. Bc4 {[%emt 0:00:27]} Bg6 {[%emt 0:00:58]} 11. Rd1 {
[%emt 0:00:18]} Rd8 {[%emt 0:00:44]} 12. Nd6+ {[%emt 0:02:12]} Bxd6 {[%emt 0:
00:00]} 13. exd6 {[%emt 0:01:04]} Qxd5 {[%emt 0:02:39]} 14. Bxd5 {[%emt 0:00:
00]} Nf6 {[%emt 0:00:27]} 15. Bxc6+ {[%emt 0:01:37]} bxc6 {[%emt 0:00:08]} 16.
Nf3 {[%emt 0:00:39]} Nh5 {[%emt 0:00:42]} 17. Bg5 {[%emt 0:00:37]} f6 {[%emt 0:
00:00]} 18. Bh4 {[%emt 0:00:16]} Bf7 {[%emt 0:02:08]} 19. O-O {[%emt 0:01:29]}
O-O {[%emt 0:00:38]} 20. a3 {[%emt 0:00:45]} Bd5 {[%emt 0:02:26]} 21. Nd4 {
[%emt 0:02:09]} Rxd6 {[%emt 0:02:28]} 22. f3 {[%emt 0:01:29]} Rb8 {[%emt 0:00:
00]} 23. Rd2 {[%emt 0:00:37]} Rdd8 {[%emt 0:00:50]} 24. g4 {[%emt 0:00:20]} g5
{[%emt 0:01:15]} 25. Bxg5 {[%emt 0:00:27]} fxg5 {[%emt 0:00:30]} 26. gxh5 {
[%emt 0:00:06]} Bc4 {[%emt 0:02:58]} 27. Rff2 {[%emt 0:00:18]} Rbc8 {[%emt 0:
00:00]} 28. Nf5 {[%emt 0:00:17]} Rxd2 {[%emt 0:01:12]} 29. Rxd2 {[%emt 0:00:10]
} Rf8 {[%emt 0:00:59]} 30. Ne7+ {[%emt 0:00:53]} Kh8 {[%emt 0:00:50]} 31. h6 {
[%emt 0:02:43]} c5 {[%emt 0:05:41]} 32. Kg2 {[%emt 0:00:48]} a5 {[%emt 0:00:59]
} 33. Kg3 {[%emt 0:00:25]} Be6 {[%emt 0:00:58]} 34. Rd6 {[%emt 0:00:41]} Bc8 {
[%emt 0:01:31]} 35. b4 {[%emt 0:01:06]} cxb4 {[%emt 0:01:15]} 36. axb4 {
[%emt 0:00:17]} axb4 {[%emt 0:00:12]} 37. cxb4 {[%emt 0:00:19]} Bg4 {[%emt 0:
00:00]} 38. Kxg4 {[%emt 0:00:40]} Rf4+ {[%emt 0:00:21]} 39. Kxg5 {[%emt 0:00:
00]} Rg4+ {[%emt 0:00:15]} 40. Kf5 {[%emt 0:00:17]} Rf4+ {[%emt 0:00:22]} 41.
Ke6 {[%emt 0:30:21]} Rf6+ {[%emt 0:30:34]} 42. Ke5 {[%emt 0:06:55]} Re6+ {
[%emt 0:01:02]} 43. Kf4 {[%emt 0:01:53]} Re4+ {[%emt 0:05:19]} 44. Kg5 {
[%emt 0:01:03]} Rg4+ {[%emt 0:03:01]} 45. Kf6 {[%emt 0:00:12]} 1-0

[Event "44th Chess Olympiad Women 2022"]
[Site "Chennai"]
[Date "2022.08.07"]
[Round "9.69"]
[White "Shariff, Sasha Christina"]
[Black "Nacario, Ruth"]
[Result "1/2-1/2"]
[WhiteElo "1183"]
[BlackElo "1552"]
[Annotator "NA RC"]
[PlyCount "153"]
[EventDate "2022.??.??"]
[TimeControl "60"]

1. e4 {[%emt 0:00:01]} c5 {[%emt 0:00:22]} 2. Nf3 {[%emt 0:00:47]} d6 {[%emt 0:
00:00]} 3. d4 {[%emt 0:04:56]} cxd4 {[%emt 0:00:30]} 4. Nxd4 {[%emt 0:03:32]}
Nf6 {[%emt 0:00:32]} 5. Nc3 {[%emt 0:00:44]} g6 {[%emt 0:01:03]} 6. f3 {
[%emt 0:07:20]} Bg7 {[%emt 0:00:57]} 7. Be3 {[%emt 0:01:08]} O-O {[%emt 0:00:
00]} 8. Qd2 {[%emt 0:03:18]} Re8 {[%emt 0:01:40]} 9. O-O-O {[%emt 0:04:11]} Nc6
{[%emt 0:01:42]} 10. Bb5 {[%emt 0:02:27]} Bd7 {[%emt 0:00:42]} 11. Nd5 {
[%emt 0:11:07]} Nxd5 {[%emt 0:05:33]} 12. exd5 {[%emt 0:00:18]} Nxd4 {[%emt 0:
00:00]} 13. Bxd7 {[%emt 0:00:43]} Qxd7 {[%emt 0:01:30]} 14. Bxd4 {[%emt 0:00:
00]} f6 {[%emt 0:01:13]} 15. Rhe1 {[%emt 0:02:56]} a5 {[%emt 0:03:36]} 16. g4 {
[%emt 0:10:36]} b5 {[%emt 0:08:43]} 17. Re3 {[%emt 0:02:10]} a4 {[%emt 0:07:48]
} 18. g5 {[%emt 0:04:46]} Qf5 {[%emt 0:05:07]} 19. h4 {[%emt 0:08:16]} Qxd5 {
[%emt 0:01:14]} 20. Bc3 {[%emt 0:00:19]} Qxa2 {[%emt 0:05:37]} 21. Qd5+ {
[%emt 0:00:43]} Qxd5 {[%emt 0:00:33]} 22. Rxd5 {[%emt 0:00:06]} f5 {[%emt 0:00:
00]} 23. Bxg7 {[%emt 0:00:44]} Kxg7 {[%emt 0:00:05]} 24. Rxb5 {[%emt 0:00:26]}
Kf7 {[%emt 0:01:11]} 25. f4 {[%emt 0:02:35]} Ra7 {[%emt 0:03:39]} 26. Rd5 {
[%emt 0:02:38]} Rea8 {[%emt 0:01:24]} 27. Rdd3 {[%emt 0:00:32]} Ke8 {[%emt 0:
00:00]} 28. Rh3 {[%emt 0:03:32]} Kd7 {[%emt 0:17:12]} 29. Kb1 {[%emt 0:01:32]}
Rb8 {[%emt 0:02:16]} 30. Ka2 {[%emt 0:00:24]} Rab7 {[%emt 0:01:53]} 31. b3 {
[%emt 0:01:28]} Ra8 {[%emt 0:04:31]} 32. Kb2 {[%emt 0:00:59]} a3+ {[%emt 0:00:
00]} 33. Ka2 {[%emt 0:00:17]} Rc7 {[%emt 0:01:18]} 34. Rc3 {[%emt 0:05:45]} Rb7
{[%emt 0:01:09]} 35. h5 {[%emt 0:01:01]} Rb4 {[%emt 0:02:35]} 36. Rcf3 {
[%emt 0:04:05]} Rd4 {[%emt 0:03:52]} 37. hxg6 {[%emt 0:00:48]} hxg6 {[%emt 0:
00:00]} 38. Rh6 {[%emt 0:01:02]} Rd2 {[%emt 0:01:06]} 39. Rc3 {[%emt 0:00:37]}
Rf2 {[%emt 0:01:04]} 40. Rh4 {[%emt 0:02:14]} d5 {[%emt 0:02:58]} 41. b4 {
[%emt 0:32:22]} d4 {[%emt 0:30:57]} 42. Rc4 {[%emt 0:02:10]} d3 {[%emt 0:00:27]
} 43. Rd4+ {[%emt 0:02:54]} Kc6 {[%emt 0:01:38]} 44. Rxd3 {[%emt 0:01:39]}
Rxc2+ {[%emt 0:00:51]} 45. Ka1 {[%emt 0:00:00]} a2 {[%emt 0:00:00]} 46. Rh1 {
[%emt 0:00:00]} Rb8 {[%emt 0:00:00]} 47. Ra3 {[%emt 0:00:00]} Rxb4 {[%emt 0:00:
00]} 48. Rxa2 {[%emt 0:00:00]} Rxa2+ {[%emt 0:00:00]} 49. Kxa2 {[%emt 0:00:00]}
Kd5 {[%emt 0:00:00]} 50. Re1 {[%emt 0:00:00]} Rb7 {[%emt 0:00:00]} 51. Re5+ {
[%emt 0:00:00]} Kd6 {[%emt 0:00:00]} 52. Ra5 {[%emt 0:00:00]} Kc6 {[%emt 0:00:
00]} 53. Ra6+ {[%emt 0:00:00]} Rb6 {[%emt 0:00:00]} 54. Ra7 {[%emt 0:00:00]}
Kd6 {[%emt 0:00:00]} 55. Ra8 {[%emt 0:00:00]} Kd7 {[%emt 0:00:00]} 56. Ra7+ {
[%emt 0:00:00]} Ke6 {[%emt 0:00:00]} 57. Ra8 {[%emt 0:00:00]} Rb7 {[%emt 0:00:
00]} 58. Rf8 {[%emt 0:00:00]} Kd5 {[%emt 0:00:00]} 59. Rg8 {[%emt 0:00:00]} Rb6
{[%emt 0:00:00]} 60. Ra8 {[%emt 0:00:00]} Ke4 {[%emt 0:00:08]} 61. Ra4+ {
[%emt 0:00:00]} Kd3 {[%emt 0:00:22]} 62. Ra7 {[%emt 0:00:00]} e6 {[%emt 0:00:
00]} 63. Rg7 {[%emt 0:00:00]} Kc2 {[%emt 0:01:05]} 64. Rc7+ {[%emt 0:00:00]}
Kd3 {[%emt 0:00:11]} 65. Rg7 {[%emt 0:00:00]} Kc2 {[%emt 0:01:14]} 66. Rc7+ {
[%emt 0:00:00]} Kd3 {[%emt 0:00:32]} 67. Rg7 {[%emt 0:00:00]} Ra6+ {[%emt 0:00:
00]} 68. Kb3 {[%emt 0:00:00]} Rb6+ {[%emt 0:00:20]} 69. Ka4 {[%emt 0:00:00]}
Kc4 {[%emt 0:00:58]} 70. Rc7+ {[%emt 0:00:00]} Kd5 {[%emt 0:00:21]} 71. Ka5 {
[%emt 0:06:25]} Rb2 {[%emt 0:02:20]} 72. Rg7 {[%emt 0:00:55]} Kc5 {[%emt 0:00:
00]} 73. Rc7+ {[%emt 0:00:19]} Kd5 {[%emt 0:00:16]} 74. Rg7 {[%emt 0:00:29]}
Kc5 {[%emt 0:01:11]} 75. Rc7+ {[%emt 0:00:21]} Kd5 {[%emt 0:00:26]} 76. Rg7 {
[%emt 0:00:35]} Kc5 {[%emt 0:00:10]} 77. Rc7+ {[%emt 0:00:08]} 1/2-1/2

[Event "44th Chess Olympiad Women 2022"]
[Site "Chennai"]
[Date "2022.08.07"]
[Round "9.70"]
[White "Inthavong, Maly"]
[Black "Jambo, Linda"]
[Result "0-1"]
[WhiteElo "1231"]
[BlackElo "1426"]
[Annotator "NA"]
[PlyCount "134"]
[EventDate "2022.??.??"]
[TimeControl "60"]

1. e4 {[%emt 0:00:08]} e5 {[%emt 0:00:27]} 2. Bc4 {[%emt 0:00:27]} Nf6 {
[%emt 0:01:09]} 3. d3 {[%emt 0:01:27]} Nc6 {[%emt 0:01:44]} 4. c3 {[%emt 0:00:
00]} Be7 {[%emt 0:00:38]} 5. a3 {[%emt 0:00:53]} O-O {[%emt 0:00:33]} 6. Ne2 {
[%emt 0:00:07]} d5 {[%emt 0:00:45]} 7. exd5 {[%emt 0:00:26]} Nxd5 {[%emt 0:00:
00]} 8. O-O {[%emt 0:00:18]} a6 {[%emt 0:03:04]} 9. f4 {[%emt 0:00:44]} Bc5+ {
[%emt 0:11:57]} 10. Kh1 {[%emt 0:00:31]} Ne3 {[%emt 0:09:49]} 11. Bxe3 {
[%emt 0:00:50]} Bxe3 {[%emt 0:00:06]} 12. fxe5 {[%emt 0:00:31]} Nxe5 {[%emt 0:
00:00]} 13. Qb3 {[%emt 0:03:19]} Nxc4 {[%emt 0:03:31]} 14. Qxc4 {[%emt 0:00:31]
} Bh6 {[%emt 0:18:50]} 15. d4 {[%emt 0:04:18]} b5 {[%emt 0:01:54]} 16. Qd3 {
[%emt 0:03:36]} Bb7 {[%emt 0:01:21]} 17. Nd2 {[%emt 0:01:01]} c5 {[%emt 0:00:
00]} 18. Nf3 {[%emt 0:00:52]} Bxf3 {[%emt 0:02:30]} 19. Qxf3 {[%emt 0:00:43]}
cxd4 {[%emt 0:08:08]} 20. Nxd4 {[%emt 0:00:44]} g6 {[%emt 0:05:45]} 21. Rad1 {
[%emt 0:00:23]} Qg5 {[%emt 0:06:09]} 22. Nc6 {[%emt 0:06:50]} Qe3 {[%emt 0:00:
00]} 23. Qg4 {[%emt 0:01:45]} Rae8 {[%emt 0:02:09]} 24. Nd4 {[%emt 0:06:14]}
Bg7 {[%emt 0:01:00]} 25. Nf3 {[%emt 0:01:42]} Qe2 {[%emt 0:01:57]} 26. Rb1 {
[%emt 0:01:05]} h5 {[%emt 0:02:45]} 27. Qd7 {[%emt 0:01:40]} Re7 {[%emt 0:00:
00]} 28. Qd6 {[%emt 0:01:17]} Qe6 {[%emt 0:02:19]} 29. Qc5 {[%emt 0:01:20]}
Rfe8 {[%emt 0:00:48]} 30. h3 {[%emt 0:06:29]} Qc8 {[%emt 0:02:17]} 31. Qd5 {
[%emt 0:01:42]} Qe6 {[%emt 0:00:49]} 32. Qc5 {[%emt 0:01:25]} Qc8 {[%emt 0:00:
00]} 33. Qb4 {[%emt 0:00:55]} Bf8 {[%emt 0:00:57]} 34. Qb3 {[%emt 0:00:18]} Bg7
{[%emt 0:01:06]} 35. Ng5 {[%emt 0:00:38]} Qd7 {[%emt 0:01:27]} 36. Rbd1 {
[%emt 0:01:58]} Qb7 {[%emt 0:00:57]} 37. Nf3 {[%emt 0:00:58]} Re2 {[%emt 0:00:
00]} 38. Rde1 {[%emt 0:01:54]} Rxe1 {[%emt 0:00:26]} 39. Nxe1 {[%emt 0:00:32]}
Re2 {[%emt 0:00:57]} 40. Nf3 {[%emt 0:01:32]} Qe7 {[%emt 0:00:41]} 41. Rb1 {
[%emt 0:32:18]} Qe4 {[%emt 0:30:33]} 42. Qd1 {[%emt 0:00:49]} Qc2 {[%emt 0:00:
00]} 43. Qf1 {[%emt 0:00:00]} Rf2 {[%emt 0:00:00]} 44. Qg1 {[%emt 0:00:00]} Bf8
{[%emt 0:00:00]} 45. Nd4 {[%emt 0:00:00]} Qd2 {[%emt 0:00:00]} 46. Nf3 {
[%emt 0:00:00]} Qc2 {[%emt 0:00:00]} 47. Nd4 {[%emt 0:00:00]} Qd2 {[%emt 0:00:
00]} 48. Nc6 {[%emt 0:00:00]} Bc5 {[%emt 0:00:00]} 49. b4 {[%emt 0:00:00]} Be3
{[%emt 0:00:00]} 50. Rc1 {[%emt 0:00:00]} Qxc1 {[%emt 0:00:00]} 51. Ne7+ {
[%emt 0:00:00]} Kf8 {[%emt 0:00:00]} 52. Nd5 {[%emt 0:00:00]} Qxg1+ {[%emt 0:
00:00]} 53. Kxg1 {[%emt 0:00:00]} Ba7 {[%emt 0:00:00]} 54. Nc7 {[%emt 0:00:00]}
Rc2+ {[%emt 0:00:00]} 55. Kf1 {[%emt 0:00:00]} Rxc3 {[%emt 0:00:00]} 56. Nxa6 {
[%emt 0:00:00]} Rxa3 {[%emt 0:00:00]} 57. Nc7 {[%emt 0:00:00]} Rb3 {[%emt 0:00:
00]} 58. Nxb5 {[%emt 0:00:00]} Bb8 {[%emt 0:00:00]} 59. Nd4 {[%emt 0:00:00]}
Rxb4 {[%emt 0:00:00]} 60. Nc6 {[%emt 0:00:00]} Rb1+ {[%emt 0:00:00]} 61. Kf2 {
[%emt 0:00:00]} Bc7 {[%emt 0:00:00]} 62. Kf3 {[%emt 0:00:00]} f5 {[%emt 0:00:
00]} 63. Nd4 {[%emt 0:00:00]} Kf7 {[%emt 0:00:00]} 64. h4 {[%emt 0:00:00]} Rb4
{[%emt 0:00:00]} 65. Nc2 {[%emt 0:00:00]} Rxh4 {[%emt 0:00:48]} 66. Ne3 {
[%emt 0:00:00]} Ke6 {[%emt 0:00:00]} 67. Nc4 {[%emt 0:00:00]} Rxc4 {[%emt 0:00:
00]} 0-1

[Event "44th Chess Olympiad Women 2022"]
[Site "Chennai"]
[Date "2022.08.07"]
[Round "9.71"]
[White "Spinola, Divania"]
[Black "Magne Kouokam Sylviane"]
[Result "1-0"]
[WhiteElo "1425"]
[BlackElo "1317"]
[Annotator "NA"]
[PlyCount "169"]
[EventDate "2022.??.??"]
[TimeControl "60"]

1. Nf3 {[%emt 0:00:11]} d5 {[%emt 0:00:04]} 2. d4 {[%emt 0:00:12]} Bf5 {
[%emt 0:00:22]} 3. e3 {[%emt 0:00:18]} Nf6 {[%emt 0:00:20]} 4. Be2 {[%emt 0:00:
00]} g6 {[%emt 0:00:11]} 5. O-O {[%emt 0:00:22]} Bg7 {[%emt 0:00:04]} 6. Bd2 {
[%emt 0:00:44]} Nc6 {[%emt 0:00:12]} 7. a3 {[%emt 0:01:30]} a5 {[%emt 0:00:18]}
8. Bb5 {[%emt 0:00:17]} Ne4 {[%emt 0:00:15]} 9. Bxc6+ {[%emt 0:04:12]} bxc6 {
[%emt 0:00:07]} 10. Bc3 {[%emt 0:00:37]} O-O {[%emt 0:00:19]} 11. a4 {[%emt 0:
00:00]} Qd6 {[%emt 0:01:10]} 12. Re1 {[%emt 0:06:25]} Rfb8 {[%emt 0:00:16]} 13.
b3 {[%emt 0:02:34]} Bg4 {[%emt 0:02:24]} 14. h3 {[%emt 0:00:39]} Be6 {[%emt 0:
00:00]} 15. Qe2 {[%emt 0:06:28]} Qd7 {[%emt 0:00:33]} 16. Bb2 {[%emt 0:03:49]}
c5 {[%emt 0:00:25]} 17. Ra2 {[%emt 0:02:34]} Rb4 {[%emt 0:05:47]} 18. Rd1 {
[%emt 0:02:12]} Rab8 {[%emt 0:00:12]} 19. Ba3 {[%emt 0:01:58]} R4b6 {[%emt 0:
00:00]} 20. dxc5 {[%emt 0:01:25]} Rc6 {[%emt 0:00:20]} 21. Qe1 {[%emt 0:05:02]}
Nxc5 {[%emt 0:02:33]} 22. Qxa5 {[%emt 0:03:49]} Ne4 {[%emt 0:00:20]} 23. Nd4 {
[%emt 0:30:00]} Bxd4 {[%emt 0:05:52]} 24. Rxd4 {[%emt 0:00:31]} Qc8 {[%emt 0:
00:00]} 25. Bxe7 {[%emt 0:01:13]} Ra6 {[%emt 0:00:12]} 26. Qe1 {[%emt 0:01:35]}
c5 {[%emt 0:00:15]} 27. Rd1 {[%emt 0:03:33]} Qc7 {[%emt 0:01:31]} 28. Bh4 {
[%emt 0:01:34]} Qd7 {[%emt 0:03:25]} 29. f3 {[%emt 0:01:28]} Nd6 {[%emt 0:00:
00]} 30. Nc3 {[%emt 0:01:00]} Nf5 {[%emt 0:00:18]} 31. Bg3 {[%emt 0:00:59]}
Rba8 {[%emt 0:01:00]} 32. Ne4 {[%emt 0:06:28]} Qe7 {[%emt 0:02:21]} 33. Nc3 {
[%emt 0:04:33]} Nxe3 {[%emt 0:02:28]} 34. Qxe3 {[%emt 0:01:33]} d4 {[%emt 0:00:
00]} 35. Qe5 {[%emt 0:01:43]} dxc3 {[%emt 0:00:00]} 36. Qxc3 {[%emt 0:01:16]}
f6 {[%emt 0:01:33]} 37. Bh4 {[%emt 0:00:54]} Bf5 {[%emt 0:00:22]} 38. Qc4+ {
[%emt 0:02:07]} Re6 {[%emt 0:00:17]} 39. Re1 {[%emt 0:00:58]} Kg7 {[%emt 0:00:
00]} 40. Rxe6 {[%emt 0:00:43]} Bxe6 {[%emt 0:00:07]} 41. Qc3 {[%emt 0:30:36]}
g5 {[%emt 0:30:55]} 42. Bxg5 {[%emt 0:00:15]} Kg6 {[%emt 0:00:43]} 43. Bxf6 {
[%emt 0:00:00]} Qxf6 {[%emt 0:00:00]} 44. Qxf6+ {[%emt 0:00:00]} Kxf6 {[%emt 0:
00:00]} 45. Ra3 {[%emt 0:00:00]} Rd8 {[%emt 0:00:00]} 46. c4 {[%emt 0:00:00]}
Rd1+ {[%emt 0:00:00]} 47. Kf2 {[%emt 0:00:00]} Ke5 {[%emt 0:00:00]} 48. a5 {
[%emt 0:00:00]} Bf5 {[%emt 0:00:00]} 49. Ke2 {[%emt 0:00:00]} Rd8 {[%emt 0:00:
00]} 50. Kf2 {[%emt 0:00:00]} Kd4 {[%emt 0:00:00]} 51. a6 {[%emt 0:00:00]} Ra8
{[%emt 0:00:00]} 52. g4 {[%emt 0:00:00]} Bc8 {[%emt 0:00:00]} 53. a7 {[%emt 0:
00:00]} Bb7 {[%emt 0:00:00]} 54. f4 {[%emt 0:00:00]} Re8 {[%emt 0:00:00]} 55.
Ra5 {[%emt 0:00:00]} Ba8 {[%emt 0:00:00]} 56. f5 {[%emt 0:00:00]} Re3 {[%emt 0:
00:00]} 57. Ra6 {[%emt 0:00:00]} Rxh3 {[%emt 0:00:00]} 58. Rd6+ {[%emt 0:00:00]
} Kc3 {[%emt 0:00:00]} 59. Rd8 {[%emt 0:00:00]} Rf3+ {[%emt 0:00:00]} 60. Kg2 {
[%emt 0:00:00]} Rd3+ {[%emt 0:00:00]} 61. Rxa8 {[%emt 0:00:00]} Kxb3 {[%emt 0:
00:00]} 62. Rb8+ {[%emt 0:00:00]} Kxc4 {[%emt 0:00:00]} 63. a8=Q {[%emt 0:00:
00]} Rd2+ {[%emt 0:00:21]} 64. Kg3 {[%emt 0:00:00]} Rd3+ {[%emt 0:00:00]} 65.
Kh4 {[%emt 0:00:00]} Kc3 {[%emt 0:00:00]} 66. Qa3+ {[%emt 0:00:00]} Kd2 {
[%emt 0:00:00]} 67. Rb2+ {[%emt 0:00:00]} Ke3 {[%emt 0:00:00]} 68. Qxc5+ {
[%emt 0:00:00]} Rd4 {[%emt 0:00:00]} 69. Qxd4+ {[%emt 0:00:00]} Kxd4 {[%emt 0:
00:00]} 70. f6 {[%emt 0:00:00]} Kc3 {[%emt 0:00:00]} 71. Rb6 {[%emt 0:00:00]}
h5 {[%emt 0:00:00]} 72. f7 {[%emt 0:00:00]} Kd3 {[%emt 0:00:00]} 73. Rg6 {
[%emt 0:00:00]} hxg4 {[%emt 0:00:00]} 74. f8=Q {[%emt 0:00:20]} Ke4 {[%emt 0:
00:00]} 75. Qe8+ {[%emt 0:00:00]} Kf5 {[%emt 0:00:00]} 76. Qf7+ {[%emt 0:00:00]
} Ke4 {[%emt 0:00:00]} 77. Re6+ {[%emt 0:00:00]} Kd5 {[%emt 0:00:00]} 78. Qd7+
{[%emt 0:00:00]} Kc5 {[%emt 0:00:00]} 79. Qd6+ {[%emt 0:00:00]} Kc4 {[%emt 0:
00:00]} 80. Kg3 {[%emt 0:00:00]} Kc3 {[%emt 0:00:00]} 81. Re3+ {[%emt 0:00:00]}
Kc4 {[%emt 0:00:00]} 82. Kf4 {[%emt 0:00:00]} Kb5 {[%emt 0:00:00]} 83. Rc3 {
[%emt 0:00:00]} g3 {[%emt 0:00:00]} 84. Kxg3 {[%emt 0:00:00]} Ka5 {[%emt 0:00:
00]} 85. Rb3 {[%emt 0:00:00]} 1-0

[Event "44th Chess Olympiad Women 2022"]
[Site "Chennai"]
[Date "2022.08.07"]
[Round "9.71"]
[White "Tchouateu Tankeu Stephanie"]
[Black "Martins, Katlene Jussara"]
[Result "1-0"]
[WhiteElo "1280"]
[BlackElo "1287"]
[Annotator "NA RC"]
[PlyCount "93"]
[EventDate "2022.??.??"]
[TimeControl "60"]

1. d4 {[%emt 0:00:04]} Nc6 {[%emt 0:00:18]} 2. c4 {[%emt 0:00:30]} e6 {[%emt 0:
00:00]} 3. Nc3 {[%emt 0:01:32]} Nf6 {[%emt 0:01:04]} 4. Nf3 {[%emt 0:00:59]}
Bb4 {[%emt 0:01:19]} 5. e3 {[%emt 0:02:56]} Bxc3+ {[%emt 0:03:21]} 6. bxc3 {
[%emt 0:00:19]} O-O {[%emt 0:00:37]} 7. Bd3 {[%emt 0:00:30]} d5 {[%emt 0:03:59]
} 8. c5 {[%emt 0:04:02]} Qe8 {[%emt 0:01:36]} 9. Bb5 {[%emt 0:03:17]} Bd7 {
[%emt 0:01:36]} 10. O-O {[%emt 0:01:25]} a6 {[%emt 0:02:37]} 11. Bxc6 {[%emt 0:
00:00]} Bxc6 {[%emt 0:00:51]} 12. Ne5 {[%emt 0:01:47]} Bb5 {[%emt 0:03:32]} 13.
Re1 {[%emt 0:00:49]} Ba4 {[%emt 0:05:14]} 14. Qf3 {[%emt 0:03:25]} Bc2 {
[%emt 0:03:36]} 15. Ba3 {[%emt 0:02:03]} Be4 {[%emt 0:00:58]} 16. Qe2 {[%emt 0:
00:00]} c6 {[%emt 0:01:19]} 17. Ng4 {[%emt 0:09:35]} Nh5 {[%emt 0:02:43]} 18.
f3 {[%emt 0:00:19]} f5 {[%emt 0:01:36]} 19. Nf2 {[%emt 0:06:56]} Qg6 {[%emt 0:
00:00]} 20. fxe4 {[%emt 0:06:14]} f4 {[%emt 0:02:47]} 21. Qg4 {[%emt 0:06:44]}
fxe3 {[%emt 0:03:45]} 22. Rxe3 {[%emt 0:02:31]} Rf4 {[%emt 0:01:46]} 23. Qxg6 {
[%emt 0:01:09]} hxg6 {[%emt 0:00:37]} 24. Nh3 {[%emt 0:04:02]} Rg4 {[%emt 0:00:
00]} 25. e5 {[%emt 0:02:02]} Rf8 {[%emt 0:03:01]} 26. Rf1 {[%emt 0:02:13]} Nf4
{[%emt 0:03:12]} 27. Nxf4 {[%emt 0:03:26]} Rgxf4 {[%emt 0:01:16]} 28. Rxf4 {
[%emt 0:00:15]} Rxf4 {[%emt 0:00:07]} 29. Bc1 {[%emt 0:03:12]} b5 {[%emt 0:00:
00]} 30. cxb6 {[%emt 0:00:34]} Rf8 {[%emt 0:02:21]} 31. Ba3 {[%emt 0:00:28]}
Rb8 {[%emt 0:01:05]} 32. Bc5 {[%emt 0:00:11]} Kf7 {[%emt 0:03:14]} 33. Rf3+ {
[%emt 0:00:56]} Kg8 {[%emt 0:00:39]} 34. Rf8+ {[%emt 0:00:45]} Rxf8 {[%emt 0:
00:00]} 35. Bxf8 {[%emt 0:00:07]} Kxf8 {[%emt 0:00:15]} 36. b7 {[%emt 0:00:08]}
Kg8 {[%emt 0:00:18]} 37. b8=Q+ {[%emt 0:00:16]} Kh7 {[%emt 0:01:46]} 38. Qb6 {
[%emt 0:00:23]} g5 {[%emt 0:03:14]} 39. Qxa6 {[%emt 0:00:19]} Kg6 {[%emt 0:00:
00]} 40. Qe2 {[%emt 0:02:03]} Kf7 {[%emt 0:00:30]} 41. a4 {[%emt 0:30:37]} Ke7
{[%emt 0:30:06]} 42. Qa6 {[%emt 0:00:51]} g6 {[%emt 0:00:26]} 43. Qb7+ {
[%emt 0:00:38]} Kf8 {[%emt 0:00:05]} 44. a5 {[%emt 0:00:16]} Kg8 {[%emt 0:00:
00]} 45. a6 {[%emt 0:00:09]} g4 {[%emt 0:00:05]} 46. a7 {[%emt 0:00:09]} g5 {
[%emt 0:00:09]} 47. a8=Q# {[%emt 0:00:21]} 1-0